bitfinex-derivatives/quotes_SOLF0:USTF0_20260211
["timestamp","ask_amount","ask_price","bid_price","bid_amount"]
[1770790609430,11.1425,80.833,80.793,0.08592274]
[1770790610235,11.1433,80.827,80.793,0.08592274]
[1770790610832,3.9894812,80.832,80.779,3.98893005]
[1770790611339,3.9894812,80.832,80.802,0.08892634]
[1770790612030,3.9894812,80.832,80.77,8.40117174]
[1770790612431,4.0778441,80.825,80.762,3.98893005]
[1770790613036,3.9894812,80.825,80.762,3.98893005]
[1770790613233,3.9894812,80.825,80.771,3.98893005]
[1770790613436,0.07965922,80.802,80.771,3.98893005]
[1770790615142,0.07965922,80.802,80.776,15.13913005]
[1770790615441,3.9894812,80.836,80.777,3.98893005]
[1770790615632,3.9894812,80.836,80.778,0.07828786]
[1770790616031,3.9894812,80.836,80.778,3.98893005]
[1770790616442,11.1423,80.834,80.78,3.98893005]
[1770790617235,3.9894812,80.836,80.782,3.98893005]
[1770790617434,3.9894812,80.836,80.77,8.40117174]
[1770790617435,11.1411,80.843,80.791,3.98893005]
[1770790617636,3.9894812,80.853,80.791,3.98893005]
[1770790618036,8.40117174,80.89,80.79,8.40117174]
[1770790618037,3.9894812,80.87,80.792,3.98893005]
[1770790619740,11.1392,80.856,80.796,3.98893005]
[1770790620139,11.1392,80.856,80.81,8.40117174]
[1770790620348,98.78,80.9,80.777,98.78]
[1770790620349,8.91941033,80.899,80.831,3.98893005]
[1770790620555,3.9894812,80.904,80.851,3.98893005]
[1770790621040,3.9894812,80.931,80.871,3.98893005]
[1770790621242,3.9894812,80.968,80.871,3.98893005]
[1770790621439,3.9894812,80.944,80.871,3.98893005]
[1770790621633,3.9894812,80.964,80.911,3.98893005]
[1770790621839,3.9894812,80.999,80.931,3.98893005]
[1770790622035,11.1218,80.983,80.931,3.98893005]
[1770790622442,11.1218,80.983,80.905,11.1324]
[1770790622443,11.1278,80.94,80.88,8.40117174]
[1770790622639,11.1278,80.94,80.9,8.40117174]
[1770790622835,11.1278,80.94,80.88,8.40117174]
[1770790623036,3.9894812,80.939,80.88,8.40117174]
[1770790623440,3.9894812,80.969,80.88,8.40117174]
[1770790623637,0.09068522,80.918,80.88,8.40117174]
[1770790623840,3.9894812,80.951,80.88,8.40117174]
[1770790624037,11.1269,80.946,80.9,8.40117174]
[1770790624240,3.9894812,80.982,80.92,4.40117174]
[1770790624439,3.9894812,80.982,80.921,3.98893005]
[1770790624640,11.1229,80.975,80.921,3.98893005]
[1770790624842,3.9894812,80.982,80.921,3.98893005]
[1770790625347,3.9894812,80.982,80.94,0.09170464]
[1770790625750,3.9894812,81.009,80.94,0.09170464]
[1770790626349,3.9894812,81.009,80.921,3.98893005]
[1770790626748,3.9894812,81.009,80.966,0.07945066]
[1770790627051,0.08668052,80.973,80.921,3.98893005]
[1770790627450,11.1193,81.001,80.921,3.98893005]
[1770790627655,3.9894812,81.009,80.94,12.39010179]
[1770790627853,3.9894812,81.009,80.941,3.98893005]
[1770790628450,0.07897431,80.983,80.941,3.98893005]
[1770790629650,0.07897431,80.983,80.928,3.98893005]
[1770790630150,3.9894812,80.991,80.928,3.98893005]
[1770790630552,3.9894812,81.009,80.941,3.98893005]
[1770790631051,3.9894812,81.009,80.951,0.08475182]
[1770790631646,3.9894812,81.009,80.941,3.98893005]
[1770790632055,3.9894812,81.009,80.972,0.08925623]
[1770790632262,3.9894812,81.007,80.941,3.98893005]
[1770790632550,0.08306315,80.983,80.941,3.98893005]
[1770790634650,0.08306315,80.983,80.87,12.34]
[1770790634651,3.9894812,80.979,80.906,3.98893005]
[1770790635554,15.1129812,80.97,80.906,3.98893005]
[1770790635757,0.08030461,80.951,80.906,3.98893005]
[1770790636848,0.08030461,80.951,80.909,11.1318]
[1770790637049,3.9894812,80.97,80.92,8.40117174]
[1770790637252,3.9894812,80.97,80.92,8.48314939]
[1770790637454,3.9894812,80.97,80.92,0.08197765]
[1770790637651,3.9894812,80.97,80.9,12.39010179]
[1770790637847,3.9894812,80.97,80.901,3.98893005]
[1770790638054,11.1237,80.969,80.903,3.98893005]
[1770790638454,3.9894812,80.968,80.903,3.98893005]
[1770790638652,3.9894812,80.968,80.927,0.08034898]
[1770790639956,3.9894812,80.954,80.88,8.40117174]
[1770790640159,3.9894812,80.954,80.879,3.98893005]
[1770790640360,3.78504954,80.948,80.879,3.98893005]
[1770790640963,3.78504954,80.948,80.881,3.7418928]
[1770790640964,11.127,80.945,80.881,3.7418928]
[1770790641351,0.08430922,80.922,80.882,11.1356]
[1770790641662,0.08430922,80.922,80.883,3.7418928]
[1770790642056,11.1252,80.958,80.888,3.7418928]
[1770790642363,11.1252,80.958,80.895,3.7418928]
[1770790642957,14.91024954,80.958,80.895,3.7418928]
[1770790643357,3.78504954,80.955,80.895,3.7418928]
[1770790643655,3.78504954,80.955,80.918,0.08916242]
[1770790644763,3.88177481,80.973,80.918,0.08916242]
[1770790645267,3.88177481,80.973,80.913,3.75908023]
[1770790645866,3.88177481,80.973,80.937,0.07876979]
[1770790646160,3.88177481,80.97,80.937,0.07876979]
[1770790646664,3.88177481,80.97,80.913,3.75908023]
[1770790646856,3.88177481,80.965,80.913,3.75908023]
[1770790647462,3.88177481,80.965,80.931,0.08446014]
[1770790648671,3.88177481,80.98,80.931,0.08446014]
[1770790649164,3.88177481,80.98,80.923,11.1299]
[1770790649165,3.88177481,80.98,80.924,3.75908023]
[1770790649564,3.88177481,80.98,80.947,0.07853416]
[1770790650372,3.88177481,81.0,80.947,0.07853416]
[1770790650974,3.88177481,81.0,80.937,11.128]
[1770790651175,3.88177481,81.0,80.937,14.88708023]
[1770790651371,3.88177481,81.0,80.965,0.08582423]
[1770790651774,11.1198,80.998,80.965,0.08582423]
[1770790651974,3.88177481,81.0,80.965,0.08582423]
[1770790653177,3.88177481,81.0,80.909,98.6]
[1770790653178,3.88177481,80.999,80.911,3.75908023]
[1770790653673,3.88177481,81.024,80.951,3.75908023]
[1770790655172,3.88177481,81.024,80.979,0.08369749]
[1770790655674,3.88177481,81.021,80.979,0.08369749]
[1770790656183,3.88177481,81.021,80.958,3.75908023]
[1770790657279,3.88177481,81.021,80.981,0.07847864]
[1770790657677,3.88177481,81.042,80.981,3.83755887]
[1770790658376,3.88177481,81.042,80.981,3.75908023]
[1770790658575,3.88177481,81.042,81.003,0.08760782]
[1770790659778,98.58,81.075,81.003,0.08760782]
[1770790659779,3.88177481,81.059,81.003,3.84668805]
[1770790660686,9.76e-05,81.043,81.013,3.75908023]
[1770790661578,9.76e-05,81.043,80.984,98.58]
[1770790661788,3.88187241,81.043,80.98,3.75908023]
[1770790661985,3.88187241,81.043,81.02,0.07879002]
[1770790662279,3.88187241,81.043,80.893,173.1974]
[1770790662280,3.88177481,81.015,80.941,3.75908023]
[1770790662875,3.88177481,81.012,80.941,3.75908023]
[1770790663384,3.88177481,81.012,80.956,3.75908023]
[1770790663587,0.08609616,80.985,80.94,8.40117174]
[1770790663785,0.08609616,80.985,80.94,12.16025197]
[1770790664292,0.08609616,80.985,80.941,3.75908023]
[1770790665087,0.08609616,80.985,80.954,11.1257]
[1770790665293,3.88177481,81.012,80.955,3.84314401]
[1770790665995,11.1154,81.03,80.962,3.75908023]
[1770790665996,3.88177481,81.029,80.962,3.75908023]
[1770790666486,3.88177481,81.014,80.951,3.75908023]
[1770790666696,3.88177481,81.014,80.987,0.08819541]
[1770790667084,0.07996076,80.991,80.951,3.75908023]
[1770790667488,3.88177481,81.014,80.951,3.75908023]
[1770790667790,3.88177481,81.012,80.951,3.75908023]
[1770790667994,3.88177481,81.009,80.934,3.75908023]
[1770790668195,3.88177481,80.989,80.913,3.75908023]
[1770790669289,0.07796952,80.959,80.913,3.75908023]
[1770790669890,3.88177481,80.989,80.904,3.75908023]
[1770790670192,3.93406431,80.976,80.928,0.08047029]
[1770790670794,3.93406431,80.976,80.904,3.75908023]
[1770790671192,15.05746431,80.971,80.904,3.75908023]
[1770790671487,3.93406431,80.97,80.904,3.75908023]
[1770790671793,0.09510574,80.946,80.906,3.98371363]
[1770790672388,0.09510574,80.946,80.907,11.1321]
[1770790672695,3.93406431,80.97,80.918,0.07980806]
[1770790673196,11.1221,80.981,80.918,3.98371363]
[1770790673492,11.1221,80.981,80.91,8.37305016]
[1770790673493,3.93406431,80.987,80.921,3.98371363]
[1770790674200,3.93406431,80.987,80.946,0.08923379]
[1770790675683,11.1217,80.984,80.946,0.08923379]
[1770790675887,3.93406431,80.983,80.946,0.08923379]
[1770790676099,3.93406431,80.983,80.903,3.98371363]
[1770790676291,3.93406431,80.972,80.903,3.98371363]
[1770790676486,3.93406431,80.969,80.903,3.98371363]
[1770790676894,3.93406431,80.969,80.883,3.98371363]
[1770790677094,3.93406431,80.954,80.883,3.98371363]
[1770790677495,0.08239269,80.934,80.883,3.98371363]
[1770790677991,3.93406431,80.954,80.883,3.98371363]
[1770790678190,3.93406431,80.939,80.866,3.98371363]
[1770790678390,0.09465598,80.917,80.866,3.98371363]
[1770790678593,3.93406431,80.903,80.84,8.37305016]
[1770790679096,3.93406431,80.903,80.841,15.12491363]
[1770790679295,0.08176759,80.88,80.841,15.12491363]
[1770790680486,3.93406431,80.923,80.853,3.98371363]
[1770790680790,3.93406431,80.923,80.852,0.08693018]
[1770790680989,3.93406431,80.923,80.835,3.98371363]
[1770790681202,3.93406431,80.923,80.841,3.98371363]
[1770790681395,3.93406431,80.909,80.841,3.98371363]
[1770790681795,3.93406431,80.909,80.874,0.08127682]
[1770790682399,3.93406431,80.926,80.874,0.08127682]
[1770790682897,11.1301,80.923,80.857,3.98371363]
[1770790683094,3.93406431,80.923,80.857,3.98371363]
[1770790683293,3.93406431,80.923,80.892,0.08271947]
[1770790683999,3.93406431,80.943,80.892,0.08271947]
[1770790684702,3.93406431,80.943,80.876,3.98371363]
[1770790685005,3.93406431,80.906,80.84,3.98371363]
[1770790685188,3.93406431,80.906,80.83,8.38869098]
[1770790685698,3.93406431,80.923,80.851,3.98371363]
[1770790686097,3.93406431,80.92,80.851,3.98371363]
[1770790686404,0.07921159,80.895,80.831,3.98371363]
[1770790686596,0.07921159,80.895,80.853,3.98371363]
[1770790687102,3.93406431,80.919,80.853,3.98371363]
[1770790687303,0.09276984,80.882,80.853,3.98371363]
[1770790687696,3.93406431,80.919,80.878,0.08152789]
[1770790688195,3.93406431,80.917,80.8,3.98371363]
[1770790688398,3.93406431,80.917,80.764,173.4731]
[1770790688399,3.93406431,80.899,80.811,3.98371363]
[1770790688603,3.93406431,80.885,80.811,3.98371363]
[1770790689101,3.93406431,80.885,80.847,0.08393908]
[1770790689496,3.93406431,80.885,80.81,8.38869098]
[1770790689497,0.07924203,80.856,80.81,8.38869098]
[1770790689898,3.93406431,80.863,80.81,8.38869098]
[1770790690809,0.08451421,80.845,80.793,3.98371363]
[1770790691202,3.93406431,80.883,80.828,0.08162848]
[1770790691703,3.93406431,80.883,80.811,3.98371363]
[1770790692809,3.93406431,80.881,80.839,0.08173468]
[1770790693295,3.93406431,80.881,80.818,3.98371363]
[1770790693696,3.93406431,80.9,80.852,0.08035522]
[1770790694810,3.93406431,80.9,80.817,3.98371363]
[1770790695306,4.01990425,80.884,80.817,3.98371363]
[1770790695615,3.93406431,80.884,80.817,3.98371363]
[1770790696210,0.09411719,80.859,80.817,3.98371363]
[1770790696408,3.93406431,80.884,80.822,3.98371363]
[1770790696714,3.93406431,80.909,80.842,0.09398059]
[1770790696906,3.93406431,80.909,80.842,4.07769422]
[1770790697111,3.93406431,80.909,80.851,3.98371363]
[1770790697307,3.93406431,80.939,80.851,3.98371363]
[1770790697607,3.93406431,80.939,80.761,22.89742771]
[1770790697608,3.93406431,80.879,80.793,3.98371363]
[1770790698202,3.93406431,80.872,80.805,11.1462]
[1770790698504,3.93406431,80.872,80.828,0.08736928]
[1770790698902,0.09418261,80.847,80.793,15.13151363]
[1770790699101,0.09418261,80.847,80.794,3.98371363]
[1770790699399,3.93406431,80.87,80.805,11.1461]
[1770790699918,3.93406431,80.87,80.814,11.1449]
[1770790700210,3.93406431,80.87,80.815,3.98371363]
[1770790700408,0.09050231,80.85,80.819,3.76207849]
[1770790700600,3.861632,80.887,80.819,3.76207849]
[1770790700800,3.861632,80.909,80.835,3.76207849]
[1770790701408,3.861632,80.909,80.85,8.38869098]
[1770790701606,3.861632,80.909,80.835,3.76207849]
[1770790702011,3.861632,80.909,80.871,0.08909349]
[1770790702612,3.861632,80.907,80.836,11.1418]
[1770790702913,3.861632,80.897,80.835,3.76207849]
[1770790704110,0.07836912,80.874,80.835,3.76207849]
[1770790704711,0.07836912,80.874,80.836,11.1418]
[1770790704911,3.76444046,80.917,80.847,4.03821021]
[1770790705715,3.76444046,80.917,80.853,11.1396]
[1770790706406,3.76444046,80.917,80.808,98.7]
[1770790706407,8.38869098,80.86,80.759,22.85319205]
[1770790706608,8.38869098,80.86,80.718,195.8878]
[1770790706609,8.38869098,80.84,80.761,22.85319205]
[1770790707008,8.38869098,80.86,80.763,22.85319205]
[1770790707413,8.38869098,80.86,80.781,22.85319205]
[1770790707613,98.7,80.861,80.781,22.85319205]
[1770790707809,8.38869098,80.88,80.781,22.85319205]
[1770790707810,0.08219303,80.82,80.781,22.85319205]
[1770790708020,0.08219303,80.82,80.76,31.24188303]
[1770790708217,0.08219303,80.82,80.761,22.85319205]
[1770790708417,11.1417,80.838,80.761,22.85319205]
[1770790708812,0.08463974,80.799,80.761,22.85319205]
[1770790709815,0.08463974,80.799,80.741,22.97233714]
[1770790710514,11.1452,80.813,80.741,22.97233714]
[1770790710717,0.09265062,80.778,80.741,22.97233714]
[1770790711321,8.38869098,80.82,80.741,22.97233714]
[1770790711728,8.38869098,80.82,80.751,0.09387717]
[1770790712129,11.1444,80.819,80.741,22.97233714]
[1770790712930,11.1444,80.819,80.772,0.08672291]
[1770790716031,11.1428,80.831,80.772,0.08672291]
[1770790716225,11.04507512,80.896,80.772,0.08672291]
[1770790716226,8.38869098,80.86,80.78,8.38869098]
[1770790716437,519.7071,80.876,80.698,22.95802454]
[1770790716628,519.6589,80.883,80.651,173.7164]
[1770790716629,11.1527,80.759,80.687,37.1]
[1770790716833,8.38869098,80.71,80.6,8.38869098]
[1770790717034,8.38869098,80.69,80.601,41.551386]
[1770790717230,11.163,80.684,80.601,41.551386]
[1770790717639,98.76,80.689,80.581,41.551386]
[1770790717827,8.38869098,80.68,80.581,41.551386]
[1770790718025,0.09005069,80.651,80.581,41.551386]
[1770790718226,0.09005069,80.651,80.6,8.38869098]
[1770790718535,0.09005069,80.651,80.501,174.0403]
[1770790718536,173.5403,80.734,80.601,41.28826823]
[1770790718726,173.5403,80.734,80.545,173.9452]
[1770790718727,19.54809098,80.71,80.631,41.28826823]
[1770790718924,98.78,80.74,80.641,41.28826823]
[1770790718925,8.38869098,80.74,80.641,41.28826823]
[1770790719133,173.5103,80.748,80.641,41.28826823]
[1770790719335,11.1567,80.729,80.641,41.28826823]
[1770790719639,0.07835316,80.679,80.601,41.28826823]
[1770790719823,0.07835316,80.679,80.62,41.28826823]
[1770790720229,11.1602,80.704,80.62,41.28826823]
[1770790720631,0.08341313,80.658,80.62,41.28826823]
[1770790720834,8.38869098,80.71,80.62,41.28826823]
[1770790721028,173.4785,80.763,80.58,8.38869098]
[1770790721029,247.5,80.773,80.651,41.41399744]
[1770790721227,8.38869098,80.76,80.655,41.41399744]
[1770790721429,8.38869098,80.76,80.681,41.41399744]
[1770790721626,8.38869098,80.78,80.681,41.41399744]
[1770790721838,8.38869098,80.78,80.7,49.80268842]
[1770790722031,11.15,80.778,80.7,49.80268842]
[1770790722433,11.15,80.778,80.722,0.09363544]
[1770790723032,11.15,80.778,80.7,49.80268842]
[1770790723230,98.84,80.786,80.7,49.80268842]
[1770790723436,98.84,80.786,80.742,0.08751272]
[1770790724131,98.84,80.811,80.742,0.08751272]
[1770790724740,98.84,80.811,80.72,41.33552328]
[1770790724741,11.1458,80.809,80.72,41.33552328]
[1770790725040,11.1458,80.809,80.768,0.09250236]
[1770790725539,11.1458,80.809,80.731,41.35370976]
[1770790725730,0.08485044,80.797,80.731,41.35370976]
[1770790726238,98.84,80.811,80.731,41.35370976]
[1770790726633,109.9855,80.811,80.731,41.35370976]
[1770790726937,0.08041568,80.779,80.731,41.35370976]
[1770790727437,109.9855,80.811,80.741,41.35538657]
[1770790727639,109.9855,80.811,80.747,0.08063328]
[1770790727937,11.1427,80.831,80.751,41.35538657]
[1770790728339,11.14,80.851,80.771,41.35538657]
[1770790728741,98.84,80.866,80.783,0.08820305]
[1770790728937,98.84,80.866,80.784,41.37081742]
[1770790729337,8.38869098,80.87,80.784,41.37081742]
[1770790729737,8.38869098,80.87,80.817,0.07911709]
[1770790730336,470.30576317,80.892,80.77,8.38869098]
[1770790730337,470.30576317,80.892,80.81,49.86855523]
[1770790730741,11.01006797,80.958,80.836,41.47986425]
[1770790730932,9.21395308,80.965,80.88,49.86855523]
[1770790731132,98.82,80.964,80.88,49.86855523]
[1770790731333,11.1249,80.96,80.88,49.86855523]
[1770790731737,11.1249,80.96,80.914,0.08667791]
[1770790732140,98.82,80.966,80.914,0.08667791]
[1770790732337,0.08726641,80.945,80.86,8.38869098]
[1770790732547,0.08726641,80.945,80.881,41.31748264]
[1770790732939,98.82,80.966,80.89,41.31748264]
[1770790733144,98.82,80.966,80.871,41.31748264]
[1770790733344,98.8,80.965,80.871,41.31748264]
[1770790733641,0.08417369,80.927,80.871,41.31748264]
[1770790734237,8.37804371,80.96,80.871,41.31748264]
[1770790734640,0.08573865,80.907,80.871,41.31748264]
[1770790735051,11.1321,80.908,80.85,41.33197805]
[1770790735544,0.08539037,80.897,80.85,41.33197805]
[1770790735944,0.08539037,80.897,80.8,41.33197805]
[1770790736141,0.08539037,80.897,80.821,41.33197805]
[1770790736544,8.37804371,80.91,80.821,41.33197805]
[1770790736941,98.76,80.911,80.841,41.33416768]
[1770790737144,98.76,80.911,80.857,0.08036319]
[1770790737555,11.1318,80.91,80.857,0.08036319]
[1770790737847,98.76,80.911,80.841,41.33416768]
[1770790738444,98.76,80.911,80.868,0.08275067]
[1770790739250,11.1315,80.912,80.868,0.08275067]
[1770790740241,98.74,80.927,80.868,0.08275067]
[1770790740444,11.1297,80.925,80.868,0.08275067]
[1770790740855,11.1297,80.925,80.86,41.33437324]
[1770790741250,11.1315,80.912,80.888,0.079727]
[1770790741550,8.37804371,80.92,80.84,49.71241695]
[1770790741744,0.08250296,80.908,80.84,49.71241695]
[1770790741949,11.1334,80.899,80.84,49.71241695]
[1770790742947,0.09318898,80.878,80.84,49.71241695]
[1770790743153,11.1314,80.913,80.84,49.71241695]
[1770790743456,11.1314,80.913,80.861,0.08336889]
[1770790744051,11.1314,80.913,80.84,49.71241695]
[1770790744346,11.1331,80.901,80.84,49.71241695]
[1770790744658,11.1331,80.901,80.868,0.07832767]
[1770790744854,11.1331,80.901,80.84,41.33437324]
[1770790745053,98.72,80.923,80.84,49.71241695]
[1770790745255,98.72,80.922,80.84,49.71241695]
[1770790745556,8.37804371,80.93,80.84,49.71241695]
[1770790745756,98.72,80.929,80.84,49.71241695]
[1770790746160,8.37804371,80.93,80.84,49.71241695]
[1770790746351,98.7,80.929,80.876,0.09168544]
[1770790746754,11.1329,80.902,80.84,49.71241695]
[1770790746960,0.08797547,80.893,80.84,49.71241695]
[1770790747156,0.08797547,80.893,80.84,41.33437324]
[1770790747554,107.07804371,80.91,80.84,41.33437324]
[1770790748259,0.0792548,80.883,80.84,41.33437324]
[1770790748961,98.7,80.912,80.853,0.09217196]
[1770790749164,98.7,80.912,80.854,41.19256349]
[1770790749759,11.1322,80.908,80.854,41.19256349]
[1770790750150,8.37804371,80.9,80.875,0.09393833]
[1770790750357,8.37804371,80.9,80.823,41.19256349]
[1770790750862,0.08836813,80.882,80.831,41.19162353]
[1770790751463,11.134,80.894,80.831,41.19162353]
[1770790752162,11.134,80.894,80.83,8.37804371]
[1770790752163,11.134,80.894,80.854,0.08653794]
[1770790753361,11.134,80.894,80.854,41.24981136]
[1770790757561,98.7,80.913,80.854,41.24981136]
[1770790757562,11.1326,80.904,80.854,41.24981136]
[1770790757765,8.37804371,80.93,80.854,41.24981136]
[1770790758063,8.37804371,80.93,80.854,41.16327342]
[1770790758251,11.1312,80.914,80.854,41.16327342]
[1770790758457,8.37804371,80.93,80.884,0.08696049]
[1770790759163,8.37804371,80.93,80.854,41.16327342]
[1770790759361,8.37804371,80.91,80.838,41.16741647]
[1770790759563,8.37804371,80.91,80.758,22.3052]
[1770790759564,8.37804371,80.89,80.718,173.5713]
[1770790759860,8.37804371,80.9,80.8,8.37804371]
[1770790760564,0.08122888,80.858,80.803,11.1464]
[1770790761164,11.1372,80.871,80.803,11.1464]
[1770790761355,11.1385,80.861,80.803,11.1464]
[1770790761663,8.37804371,80.88,80.804,31.68636232]
[1770790761866,8.37804371,80.88,80.829,0.08963416]
[1770790762266,8.37804371,80.88,80.804,31.68636232]
[1770790762762,11.1402,80.849,80.804,31.68636232]
[1770790762967,11.1402,80.849,80.608,52.70182492]
[1770790762968,8.37804371,80.84,80.761,31.62691625]
[1770790763160,8.37804371,80.84,80.763,31.62691625]
[1770790763361,11.1441,80.821,80.765,31.62691625]
[1770790763657,98.7,80.843,80.765,31.62691625]
[1770790763658,0.07964309,80.809,80.766,10.25463486]
[1770790763864,11.1425,80.833,80.768,31.58709471]
[1770790764060,11.1425,80.833,80.77,31.58709471]
[1770790764367,11.1425,80.833,80.772,31.58709471]
[1770790764563,11.1425,80.833,80.774,31.75315997]
[1770790764764,11.1425,80.833,80.776,31.75315997]
[1770790764958,11.1425,80.833,80.778,31.75315997]
[1770790765163,11.1425,80.833,80.78,31.75315997]
[1770790765366,11.1425,80.833,80.782,31.75315997]
[1770790765561,11.1425,80.833,80.783,42.00779483]
[1770790765765,11.1425,80.833,80.797,0.08184861]
[1770790767157,11.1442,80.82,80.764,31.73303073]
[1770790768567,11.1442,80.82,80.716,98.72]
[1770790768568,8.37804371,80.84,80.744,31.74369565]
[1770790768768,11.1483,80.791,80.711,31.74369565]
[1770790769074,8.37804371,80.8,80.711,31.74369565]
[1770790770175,8.37804371,80.78,80.711,31.74369565]
[1770790770869,11.1503,80.776,80.711,31.74369565]
[1770790771272,11.01006797,80.826,80.711,31.74369565]
[1770790771470,8.37804371,80.83,80.751,31.75796939]
[1770790771867,11.1448,80.816,80.761,31.71035562]
[1770790772376,98.76,80.837,80.761,31.71035562]
[1770790772767,11.1446,80.818,80.761,31.71035562]
[1770790772964,9.18973966,80.836,80.791,0.09348106]
[1770790773270,11.1455,80.811,80.761,31.71035562]
[1770790773575,0.09261369,80.798,80.761,31.71035562]
[1770790773871,98.76,80.837,80.761,31.71035562]
[1770790774675,11.1438,80.823,80.761,31.71035562]
[1770790775182,107.13804371,80.86,80.785,31.68707935]
[1770790775370,8.37804371,80.86,80.785,31.68707935]
[1770790775977,11.1405,80.847,80.785,31.68707935]
[1770790776168,98.76,80.861,80.813,0.09006475]
[1770790776478,8.37804371,80.88,80.813,0.09006475]
[1770790776669,8.37804371,80.88,80.813,31.77753893]
[1770790777073,8.37804371,80.88,80.813,31.68747418]
[1770790777281,98.78,80.879,80.813,31.68747418]
[1770790777477,11.1402,80.849,80.813,31.68747418]
[1770790777690,8.37804371,80.86,80.77,8.37804371]
[1770790777881,173.2931,80.849,80.733,98.78]
[1770790778067,107.97138914,80.848,80.77,8.37804371]
[1770790778375,98.78,80.848,80.77,8.37804371]
[1770790778798,98.78,80.848,80.7,8.37804371]
[1770790778799,8.37804371,80.79,80.68,98.76]
[1770790779083,8.37804371,80.79,80.676,11.164]
[1770790779084,98.76,80.792,80.7,8.37804371]
[1770790779374,11.147,80.8,80.74,8.37804371]
[1770790779580,11.147,80.8,80.742,20.90131405]
[1770790779781,11.147,80.8,80.744,20.90131405]
[1770790779976,11.147,80.8,80.746,20.90131405]
[1770790780176,11.147,80.8,80.748,20.90131405]
[1770790780374,11.147,80.8,80.763,0.09131352]
[1770790781081,11.147,80.8,80.72,8.37804371]
[1770790781277,0.08217512,80.79,80.721,10.19293344]
[1770790781482,0.08217512,80.79,80.662,37.1]
[1770790781483,8.37804371,80.75,80.722,3.344e-05]
[1770790781680,8.37804371,80.75,80.63,8.37804371]
[1770790781681,8.37804371,80.73,80.63,8.37804371]
[1770790781869,8.37804371,80.71,80.63,8.37804371]
[1770790782071,8.37804371,80.73,80.63,8.37804371]
[1770790782276,11.1549,80.743,80.64,8.37804371]
[1770790782478,8.37804371,80.73,80.64,8.37804371]
[1770790782874,8.37804371,80.73,80.683,0.08240496]
[1770790783274,11.1549,80.743,80.683,0.08240496]
[1770790783476,8.37804371,80.73,80.683,0.08240496]
[1770790783879,11.1549,80.743,80.661,10.66017582]
[1770790784079,98.78,80.749,80.661,10.66017582]
[1770790784279,8.37804371,80.75,80.661,10.66017582]
[1770790784280,98.8,80.748,80.661,10.66017582]
[1770790784679,98.8,80.748,80.697,0.08141531]
[1770790785280,98.8,80.748,80.635,10.66500004]
[1770790785474,8.37804371,80.72,80.635,10.66500004]
[1770790785680,11.1554,80.739,80.651,10.66500004]
[1770790786185,11.1554,80.739,80.669,0.08431617]
[1770790786387,8.37804371,80.74,80.669,10.72488845]
[1770790786583,8.37804371,80.74,80.669,10.64057228]
[1770790786986,8.37804371,80.74,80.696,0.08618827]
[1770790787387,98.82,80.745,80.696,0.08618827]
[1770790788093,11.1547,80.744,80.669,10.64057228]
[1770790788793,11.1547,80.744,80.698,0.08462873]
[1770790788987,11.1554,80.739,80.698,0.08462873]
[1770790790080,11.1554,80.739,80.669,10.64057228]
[1770790790286,0.07920086,80.727,80.669,10.64057228]
[1770790790796,11.1554,80.739,80.669,10.64057228]
[1770790791394,0.09040753,80.712,80.669,10.64057228]
[1770790792094,11.157,80.727,80.669,10.64057228]
[1770790792294,11.157,80.727,80.682,10.66295606]
[1770790792595,8.37804371,80.77,80.682,10.66295606]
[1770790792799,11.1534,80.753,80.682,10.66295606]
[1770790793297,98.86,80.769,80.711,10.57808523]
[1770790793298,11.1512,80.769,80.711,10.57808523]
[1770790794390,11.1475,80.797,80.733,10.50519841]
[1770790794591,8.37804371,80.81,80.733,10.50519841]
[1770790794901,8.41237084,80.81,80.733,10.50519841]
[1770790795305,98.86,80.813,80.733,10.50519841]
[1770790795504,11.1472,80.798,80.763,0.07856238]
[1770790796091,11.1472,80.798,80.733,10.50519841]
[1770790796306,8.41237084,80.81,80.733,10.50519841]
[1770790796502,173.2375,80.875,80.76,8.41237084]
[1770790796696,173.2375,80.875,80.7,8.41237084]
[1770790796697,11.1441,80.821,80.761,10.4921966]
[1770790797390,11.1418,80.838,80.783,0.08651221]
[1770790797900,8.40399291,80.85,80.784,10.4921966]
[1770790798299,19.54409291,80.85,80.802,0.08668985]
[1770790798500,11.1401,80.85,80.802,0.08668985]
[1770790799501,11.1415,80.839,80.765,10.48865006]
[1770790799804,0.08858211,80.834,80.765,10.48865006]
[1770790800208,8.40399291,80.84,80.765,10.48865006]
[1770790800401,98.84,80.864,80.773,10.54733521]
[1770790800702,8.40399291,80.85,80.773,10.54733521]
[1770790800902,0.09350919,80.827,80.773,10.54733521]
[1770790801499,0.09350919,80.827,80.736,10.54733521]
[1770790801699,0.09350919,80.827,80.741,10.54733521]